bitfinex/quotes_BTCUSD_20251221
["timestamp","ask_amount","ask_price","bid_price","bid_amount"]
[1766345279705,0.00568,88447.0,88438.0,0.21463]
[1766345280090,0.03964675,88447.0,88438.0,0.21463]
[1766345281106,0.03964675,88447.0,88400.0,0.00239998]
[1766345281107,0.01130658,88444.0,88431.0,0.01130825]
[1766345281311,0.47138,88437.0,88432.0,0.00043834]
[1766345281534,0.00055,88438.0,88431.0,0.00548]
[1766345281733,0.24615,88435.0,88430.0,0.00568]
[1766345282151,0.24615,88435.0,88428.0,0.01130863]
[1766345282350,0.24615,88435.0,88429.0,0.00568]
[1766345282931,0.24615,88435.0,88429.0,0.0169885]
[1766345284291,0.24615,88435.0,88429.0,0.00568]
[1766345285085,0.24615,88435.0,88429.0,0.0169885]
[1766345286175,0.24615,88435.0,88430.0,0.01130837]
[1766345286328,0.24615,88435.0,88429.0,0.0169885]
[1766345286748,0.46301,88441.0,88429.0,0.0169885]
[1766345286907,0.46301,88441.0,88429.0,0.2330485]
[1766345287497,0.47431697,88441.0,88429.0,0.2330485]
[1766345287864,0.23778,88440.0,88429.0,0.22174]
[1766345288236,0.2490871,88440.0,88429.0,0.22174]
[1766345290234,0.23778,88440.0,88429.0,0.22174]
[1766345290840,0.01130722,88439.0,88429.0,0.22174]
[1766345291041,0.23778,88440.0,88429.0,0.22174]
[1766345291298,0.23778,88440.0,88429.0,0.2330485]
[1766345291873,0.2490871,88440.0,88429.0,0.22174]
[1766345292058,0.23778,88439.0,88429.0,0.22174]
[1766345292477,0.20913,88439.0,88429.0,0.00568]
[1766345292678,0.23778,88438.0,88429.0,0.00568]
[1766345294633,0.23778,88437.0,88429.0,0.00568]
[1766345300884,0.23778,88437.0,88428.0,0.00568]
[1766345300885,0.00055,88429.0,88428.0,0.00568]
[1766345301097,2.637e-05,88429.0,88424.0,0.00568]
[1766345301402,0.23778,88432.0,88424.0,0.01698914]
[1766345301605,0.23778,88432.0,88424.0,0.00568]
[1766345301982,0.23778,88432.0,88424.0,0.01698914]
[1766345302189,0.00568,88435.0,88424.0,0.23304914]
[1766345302971,0.00568,88435.0,88425.0,0.21606]
[1766345304474,0.00568,88435.0,88425.0,0.22736901]
[1766345307875,0.00568,88435.0,88427.0,0.20337]
[1766345309971,0.00568,88435.0,88426.0,0.01130889]
[1766345310401,0.00568,88435.0,88427.0,0.20337]
[1766345310959,0.005157,88435.0,88427.0,0.20337]
[1766345311167,0.005157,88435.0,88427.0,0.21467876]
[1766345312172,0.005157,88435.0,88427.0,0.20337]
[1766345313190,0.005157,88435.0,88427.0,0.21467876]
[1766345313387,0.005157,88435.0,88427.0,0.20337]
[1766345314360,0.005157,88435.0,88427.0,0.202821]
[1766345314508,0.005157,88435.0,88424.0,0.05095766]
[1766345314731,0.005157,88435.0,88424.0,0.03964852]
[1766345314938,0.01646474,88435.0,88424.0,0.03964852]
[1766345315340,0.01130786,88434.0,88424.0,0.03964852]
[1766345315902,0.24460786,88434.0,88424.0,0.03964852]
[1766345316450,0.24460786,88434.0,88424.0,0.23480852]
[1766345317309,0.2333,88434.0,88424.0,0.23480852]
[1766345318009,0.24460786,88434.0,88424.0,0.23480852]
[1766345318967,0.01130799,88433.0,88424.0,0.23480852]
[1766345319287,0.24460786,88434.0,88424.0,0.23480852]
[1766345319725,0.24460786,88434.0,88424.0,0.20084]
[1766345322737,0.01130799,88433.0,88424.0,0.20084]
[1766345322937,0.24460786,88434.0,88424.0,0.20084]
[1766345325091,0.24460786,88434.0,88424.0,0.00568]
[1766345326575,0.2333,88431.0,88424.0,0.00568]
[1766345326781,0.01130863,88428.0,88424.0,0.00568]
[1766345326957,0.01130863,88428.0,88423.0,0.0003576]
[1766345326958,0.21490316,88428.0,88423.0,0.0003576]
[1766345327371,0.01130889,88426.0,88423.0,0.0003576]
[1766345327586,0.01130889,88426.0,88417.0,0.00064644]
[1766345327587,0.06785598,88423.0,88417.0,0.00632644]
[1766345327807,0.0113094,88422.0,88417.0,0.00632644]
[1766345327983,0.06821361,88423.0,88411.0,0.19556]
[1766345327984,0.2093,88421.0,88411.0,0.0004]
[1766345328197,0.01131029,88415.0,88411.0,0.0004]
[1766345328487,0.01357251,88416.0,88411.0,0.0004]
[1766345328893,0.24687251,88416.0,88411.0,0.0004]
[1766345329058,0.25818408,88416.0,88411.0,0.0004]
[1766345331283,0.25818408,88416.0,88390.0,0.0004]
[1766345331284,0.01131093,88410.0,88390.0,0.0004]
[1766345331483,0.00568,88409.0,88401.0,0.19516]
[1766345331721,0.01131119,88408.0,88401.0,0.19516]
[1766345331928,0.02262212,88408.0,88401.0,0.1103265]
[1766345332433,0.01131132,88407.0,88401.0,0.1103265]
[1766345332974,0.02262212,88408.0,88401.0,0.1103265]
[1766345333636,0.02262212,88408.0,88396.0,0.01357251]
[1766345333839,0.02262212,88408.0,88397.0,0.19516]
[1766345334042,0.01131132,88407.0,88397.0,0.19516]
[1766345334471,0.01131144,88406.0,88396.0,0.01357527]
[1766345334682,0.01131144,88406.0,88394.0,0.01131298]
[1766345334878,0.2333,88407.0,88397.0,0.19516]
[1766345336938,0.02262212,88408.0,88398.0,0.19516]
[1766345337180,0.02262212,88408.0,88401.0,0.0002465]
[1766345337411,0.01131093,88408.0,88401.0,0.0002465]
[1766345340673,0.02262212,88408.0,88401.0,0.0002465]
[1766345340970,0.01131093,88408.0,88401.0,0.0002465]
[1766345341110,0.01699106,88409.0,88401.0,0.0002465]
[1766345341316,0.03398187,88407.0,88401.0,0.0002465]
[1766345341723,0.10178952,88472.0,88401.0,0.0002465]
[1766345341724,0.01191039,88416.0,88407.0,0.00055]
[1766345341918,0.00558,88415.0,88407.0,0.19571]
[1766345342144,0.00548,88415.0,88407.0,0.19516]
[1766345342364,0.26620435,88423.0,88410.0,0.19516]
[1766345342365,0.00035763,88423.0,88410.0,0.19516]
[1766345342611,0.00568,88422.0,88416.0,0.19516]
[1766345342820,0.01130837,88430.0,88418.0,0.19516]
[1766345342821,0.00568,88426.0,88418.0,0.19516]
[1766345343026,4.85e-05,88426.0,88418.0,0.19516]
[1766345343241,0.00568,88428.0,88418.0,0.19516]
[1766345343473,0.00568,88428.0,88418.0,0.19521658]
[1766345343885,0.00568,88428.0,88418.0,0.20652649]
[1766345344245,0.00568,88428.0,88419.0,0.01130978]
[1766345344444,0.00568,88428.0,88420.0,0.19516]
[1766345345329,0.00568,88429.0,88420.0,0.19516]
[1766345345666,0.00568,88429.0,88420.0,0.20646965]
[1766345345864,0.00568,88429.0,88420.0,0.19516]
[1766345347284,0.00568,88429.0,88420.0,0.20646965]
[1766345347697,0.00568,88429.0,88420.0,0.19516]
[1766345350011,0.00568,88429.0,88420.0,0.20646965]
[1766345350470,0.00253271,88429.0,88420.0,0.20646965]
[1766345350621,0.00044712,88429.0,88423.0,0.20418927]
[1766345350820,0.00044712,88429.0,88424.0,0.01130914]
[1766345351190,0.2093,88437.0,88429.0,0.000447]
[1766345351412,0.2093,88437.0,88424.0,0.20418914]
[1766345351413,0.00568,88436.0,88427.0,0.19288]
[1766345351622,0.00568,88436.0,88429.0,0.03396898]
[1766345358504,0.00568,88436.0,88429.0,0.23815748]
[1766345358704,0.00568,88436.0,88429.0,0.22684898]
[1766345366662,0.00568,88436.0,88427.0,0.01130876]
[1766345366663,0.45216175,88464.0,88437.0,0.19007]
[1766345366664,0.06783722,88447.0,88437.0,0.19007]
[1766345366865,0.01698646,88445.0,88437.0,0.19007]
[1766345367197,0.01698646,88445.0,88433.0,0.20137799]
[1766345367401,0.01698646,88445.0,88433.0,0.19007]
[1766345368421,0.01130658,88444.0,88433.0,0.19007]
[1766345369191,0.01698646,88445.0,88433.0,0.19007]
[1766345369392,0.01130658,88444.0,88433.0,0.19007]
[1766345370298,0.01698646,88445.0,88433.0,0.20137799]
[1766345370509,0.00568,88445.0,88433.0,0.20137799]
[1766345370638,0.00568,88445.0,88436.0,0.01130761]
[1766345370844,0.00568,88445.0,88435.0,0.20137774]
[1766345371024,0.00568,88445.0,88436.0,0.01130761]
[1766345371228,0.00568,88445.0,88435.0,0.20137774]
[1766345372146,0.00568,88445.0,88436.0,0.01130761]
[1766345372347,0.00568,88445.0,88435.0,0.20137774]
[1766345372738,0.00568,88445.0,88437.0,0.01130748]
[1766345372942,0.00568,88445.0,88437.0,0.20137748]
[1766345373217,0.00568,88445.0,88437.0,0.19007]
[1766345378978,0.00568,88445.0,88434.0,0.01130786]
[1766345379288,4.466e-05,88444.0,88434.0,0.01130786]
[1766345379493,4.466e-05,88444.0,88435.0,0.19986]
[1766345379689,4.466e-05,88444.0,88435.0,0.21116774]
[1766345380129,4.466e-05,88444.0,88435.0,0.19976]
[1766345380345,4.466e-05,88444.0,88435.0,0.19966]
[1766345383709,4.466e-05,88444.0,88435.0,0.21096774]
[1766345384136,4.466e-05,88444.0,88435.0,0.19966]
[1766345385238,4.466e-05,88444.0,88432.0,0.05095541]
[1766345385440,0.21723124,88444.0,88432.0,0.05095541]
[1766345386985,0.21723124,88444.0,88432.0,0.01698812]
[1766345389334,0.21723124,88444.0,88432.0,0.00568]
[1766345389728,0.21718684,88442.0,88432.0,0.00568]
[1766345390050,0.01130697,88441.0,88432.0,0.00568]
[1766345390214,0.21718684,88442.0,88432.0,0.00568]
[1766345390649,0.01130697,88441.0,88432.0,0.00568]
[1766345392708,4.466e-05,88440.0,88432.0,0.00568]
[1766345394618,0.01135176,88440.0,88432.0,0.00568]
[1766345395483,4.466e-05,88440.0,88432.0,0.00568]
[1766345397314,0.01135176,88440.0,88432.0,0.00568]
[1766345398050,4.466e-05,88440.0,88432.0,0.00568]
[1766345400689,4.466e-05,88440.0,88419.0,0.00568]
[1766345400690,0.20588,88426.0,88419.0,0.00568]
[1766345400932,0.20533,88426.0,88419.0,0.00568]
[1766345401741,0.20533,88426.0,88419.0,0.005131]
[1766345403759,4.466e-05,88425.0,88419.0,0.005131]
[1766345409027,0.01135367,88425.0,88419.0,0.005131]
[1766345409223,4.466e-05,88425.0,88419.0,0.005131]
[1766345410458,0.01135367,88425.0,88419.0,0.005131]
[1766345410649,0.0113094,88422.0,88419.0,0.005131]
[1766345411008,0.01130927,88423.0,88407.0,0.01357251]
[1766345411009,0.01131017,88416.0,88407.0,0.1859]
[1766345411212,0.01131042,88414.0,88408.0,0.00568]
[1766345411410,0.01131055,88413.0,88408.0,0.19158]
[1766345411751,0.01131029,88415.0,88408.0,0.19158]
[1766345412312,0.01131029,88415.0,88407.0,0.00035763]
[1766345412313,0.0565554,88409.0,88407.0,0.00035763]
[1766345412541,0.0565554,88409.0,88401.0,0.0002465]
[1766345412542,0.0565598,88402.0,88401.0,0.0002465]
[1766345412767,0.03796699,88402.0,88401.0,0.0002465]
[1766345412894,0.0113126,88397.0,88390.0,0.0004]
[1766345413104,0.06787329,88400.0,88393.0,0.02919871]
[1766345413105,0.01131298,88394.0,88393.0,0.02919871]
[1766345413305,0.06787713,88395.0,88393.0,0.01343467]
[1766345413527,0.06787713,88395.0,88393.0,0.00024654]
[1766345413950,0.01131272,88396.0,88393.0,0.00024654]
[1766345414449,0.06787648,88396.0,88393.0,5.4e-07]
[1766345414648,0.01131272,88396.0,88393.0,5.4e-07]
[1766345414990,0.01131208,88401.0,88393.0,5.4e-07]
[1766345415197,0.01734959,88402.0,88393.0,5.4e-07]
[1766345415821,4.466e-05,88400.0,88393.0,5.4e-07]
[1766345418828,2.29e-06,88402.0,88400.0,4.4e-05]
[1766345418974,0.01131144,88406.0,88402.0,0.00019871]
[1766345419179,0.01699119,88408.0,88402.0,0.00024721]
[1766345419490,0.01699119,88408.0,88402.0,4.85e-05]
[1766345420953,0.01131132,88407.0,88402.0,4.85e-05]
[1766345421131,0.01131144,88406.0,88402.0,4.85e-05]
[1766345421338,0.01131132,88407.0,88402.0,4.85e-05]
[1766345422349,0.01131157,88405.0,88402.0,4.85e-05]
[1766345422552,0.01131144,88406.0,88402.0,4.85e-05]
[1766345422755,0.01131157,88405.0,88402.0,4.85e-05]
[1766345424224,0.01131196,88402.0,88395.0,0.19158]
[1766345424419,0.011413,88402.0,88395.0,0.00568]
[1766345424671,0.00010104,88402.0,88395.0,0.00568]
[1766345432753,0.00010104,88402.0,88395.0,0.20248285]
[1766345433396,0.00010104,88402.0,88395.0,0.19117]
[1766345436450,0.00010104,88402.0,88395.0,0.20304]
[1766345436832,0.01131247,88398.0,88395.0,0.00568]
[1766345437043,0.01131247,88398.0,88395.0,0.004824]
[1766345437358,0.01131234,88399.0,88395.0,0.004824]
[1766345437853,0.01131221,88400.0,88395.0,0.004824]
[1766345438057,0.01131208,88401.0,88395.0,0.004824]
[1766345438214,0.011413,88402.0,88395.0,0.004824]
[1766345438882,0.00010104,88402.0,88395.0,0.01613685]
[1766345439082,0.00010104,88402.0,88395.0,0.202184]
[1766345439492,4e-08,88402.0,88395.0,0.202184]
[1766345443779,0.01131208,88401.0,88393.0,5.4e-07]
[1766345443983,4e-08,88402.0,88395.0,0.00568]
[1766345444143,4e-08,88402.0,88395.0,0.005579]
[1766345445394,0.011312,88402.0,88395.0,0.005579]
[1766345445750,4e-08,88402.0,88395.0,0.005579]
[1766345447951,4e-08,88402.0,88396.0,0.19736]
[1766345448400,0.01131132,88407.0,88396.0,0.19736]
[1766345449272,0.01131144,88406.0,88396.0,0.19736]
[1766345449706,0.01131132,88407.0,88396.0,0.19736]
[1766345449914,0.01131144,88406.0,88396.0,0.19736]
[1766345450126,0.01131119,88408.0,88396.0,0.19736]
[1766345450335,0.01131132,88407.0,88396.0,0.19736]
[1766345452794,0.01131157,88405.0,88396.0,0.19736]
[1766345452956,0.01131132,88407.0,88396.0,0.19736]
[1766345453160,0.01131106,88409.0,88396.0,0.19736]
[1766345453360,0.01131106,88409.0,88397.0,0.2086726]
[1766345453565,0.01131119,88408.0,88397.0,0.19736]
[1766345454263,0.06786718,88408.0,88397.0,0.19736]
[1766345454461,0.01131132,88407.0,88397.0,0.19736]
[1766345454664,0.01131119,88408.0,88397.0,0.19736]
[1766345454665,0.06786734,88408.0,88397.0,0.19736]
[1766345454893,0.01131132,88407.0,88397.0,0.19736]
[1766345456786,0.22728119,88408.0,88395.0,0.01689185]
[1766345457148,0.22728119,88408.0,88395.0,0.21425185]
[1766345457288,0.00568,88408.0,88401.0,0.19736]
[1766345457639,0.00568,88410.0,88404.0,0.19736]
[1766345457978,0.005131,88410.0,88404.0,0.19736]
[1766345458802,0.00175524,88410.0,88404.0,0.19736]
[1766345459432,0.01131144,88406.0,88394.0,0.01131298]
[1766345459583,0.42027,88407.0,88394.0,0.01131298]
[1766345459800,0.21597,88405.0,88394.0,0.01131298]
[1766345460154,0.21597,88405.0,88395.0,0.01689185]
[1766345460501,0.21597,88405.0,88396.0,0.01131272]
[1766345461043,0.21597,88405.0,88395.0,0.01689185]
[1766345461251,0.21597,88405.0,88395.0,0.005579]
[1766345461632,0.21597,88405.0,88395.0,0.01689185]
[1766345462002,0.01131132,88407.0,88396.0,0.19736]
[1766345462202,0.01131106,88409.0,88397.0,0.0113126]
[1766345462614,0.01131119,88408.0,88396.0,0.20867272]
[1766345464170,0.21597,88409.0,88398.0,0.01131247]
[1766345464514,0.2043,88408.0,88397.0,0.0113126]
[1766345464722,0.21597,88407.0,88396.0,0.01131272]
[1766345465370,0.21597,88407.0,88397.0,0.0113126]
[1766345465738,0.21597,88407.0,88397.0,0.47292838]
[1766345466120,0.22192,88406.0,88397.0,0.47292838]
[1766345466523,0.22192,88406.0,88397.0,0.0113126]
[1766345466698,0.22192,88406.0,88396.0,0.4729285]
[1766345467967,0.22192,88406.0,88396.0,0.01131272]
[1766345468169,0.22192,88406.0,88395.0,0.01689185]
[1766345468377,0.22192,88406.0,88395.0,0.005579]
[1766345468613,0.23323144,88406.0,88395.0,0.005579]
[1766345469109,0.01131157,88405.0,88395.0,0.005579]
[1766345471801,0.22192,88406.0,88395.0,0.005579]
[1766345472053,0.23323144,88406.0,88395.0,0.005579]
[1766345473217,0.22192,88406.0,88395.0,0.01689185]
[1766345473419,0.22192,88406.0,88396.0,0.01131272]
[1766345474218,0.22192,88406.0,88395.0,0.21272185]
[1766345475737,0.22192,88406.0,88395.0,0.201409]
[1766345475940,0.23323144,88406.0,88395.0,0.201409]
[1766345476436,0.22192,88406.0,88395.0,0.21272185]
[1766345477230,0.22192,88406.0,88395.0,0.201409]
[1766345478055,0.23323144,88406.0,88395.0,0.201409]
[1766345478262,0.22192,88406.0,88395.0,0.201409]
[1766345479257,0.23323144,88406.0,88395.0,0.201409]
[1766345479998,0.22192,88406.0,88395.0,0.201409]
[1766345480158,0.23323144,88406.0,88395.0,0.201409]
[1766345480371,0.22192,88406.0,88395.0,0.201409]
[1766345482202,0.21373144,88406.0,88395.0,0.005579]
[1766345482401,0.01131157,88405.0,88395.0,0.005579]
[1766345482611,0.01131183,88403.0,88395.0,0.005379]
[1766345482982,0.0113117,88404.0,88395.0,0.005379]
[1766345484197,0.01131183,88403.0,88395.0,0.005379]
[1766345484398,0.0113126,88397.0,88395.0,0.00568]
[1766345484623,0.01131247,88398.0,88395.0,0.004581]
[1766345484932,0.49221334,88400.0,88395.0,0.004581]
[1766345484933,0.01131234,88399.0,88395.0,0.004581]
[1766345485596,0.01131247,88398.0,88393.0,5.4e-07]
[1766345485843,0.01131272,88396.0,88393.0,5.4e-07]
[1766345486157,0.23323272,88396.0,88393.0,5.4e-07]
[1766345486977,0.2702956,88397.0,88379.0,0.0004]
[1766345486978,0.01131439,88383.0,88379.0,0.0004]
[1766345487098,0.01076552,88382.0,88379.0,0.0004]
[1766345487299,0.22214426,88384.0,88379.0,0.0004]
[1766345487943,0.22214426,88384.0,88375.0,0.0004]
[1766345488122,0.21083,88384.0,88375.0,0.0004]
[1766345488766,0.21083,88384.0,88375.0,0.01171541]
[1766345489174,0.21083,88384.0,88375.0,0.0004]
[1766345489378,0.21651,88390.0,88375.0,0.19072]
[1766345489579,0.03057038,88408.0,88375.0,0.19072]
[1766345489580,0.21087852,88398.0,88381.0,0.19032]
[1766345489877,0.0169926,88397.0,88384.0,0.01131426]
[1766345490115,0.22219099,88398.0,88386.0,0.19032]
[1766345490316,0.01131285,88395.0,88386.0,0.19032]
[1766345490864,0.01699272,88396.0,88386.0,0.19032]
[1766345491907,0.00568,88396.0,88386.0,0.19032]
[1766345492110,0.01699272,88396.0,88386.0,0.19032]
[1766345492270,0.00568,88396.0,88386.0,0.19032]
[1766345492464,0.01699272,88396.0,88386.0,0.19032]
[1766345492673,0.00568,88396.0,88386.0,0.19032]
[1766345494190,0.01699272,88396.0,88386.0,0.19032]
[1766345496341,0.01131285,88395.0,88386.0,0.19032]
[1766345496537,0.01699272,88396.0,88386.0,0.19032]
[1766345496767,0.21374,88393.0,88382.0,0.01699452]
[1766345497040,0.21374,88391.0,88382.0,0.00568]
[1766345497241,0.21374,88391.0,88382.0,0.01699452]
[1766345498067,0.21374,88391.0,88385.0,0.00024657]
[1766345498272,0.22505336,88391.0,88385.0,0.00024657]
[1766345498514,0.20448349,88390.0,88385.0,5.7e-07]
[1766345498769,0.22505375,88388.0,88385.0,5.7e-07]
[1766345498933,0.21374,88388.0,88385.0,5.7e-07]
[1766345500549,0.22505375,88388.0,88385.0,5.7e-07]
[1766345501078,0.21374,88388.0,88385.0,5.7e-07]
[1766345501293,0.22505375,88388.0,88385.0,5.7e-07]
[1766345501790,0.21374,88388.0,88385.0,5.7e-07]
[1766345503054,0.22505375,88388.0,88385.0,5.7e-07]
[1766345503258,0.21374,88388.0,88385.0,5.7e-07]
[1766345506465,0.213494,88388.0,88385.0,5.7e-07]
[1766345507111,0.20448324,88392.0,88385.0,5.7e-07]
[1766345507311,0.19317,88392.0,88385.0,5.7e-07]
[1766345508070,0.20448324,88392.0,88385.0,5.7e-07]
[1766345508266,0.01131285,88395.0,88385.0,5.7e-07]
[1766345508432,0.01131285,88395.0,88392.0,0.00055]
[1766345508629,0.01111285,88395.0,88385.0,5.7e-07]
[1766345508852,0.01131298,88394.0,88385.0,5.7e-07]
[1766345509057,0.19885,88396.0,88385.0,5.7e-07]
[1766345510378,0.00568,88396.0,88385.0,0.1975847]
[1766345510596,0.00568,88399.0,88396.0,0.00055]
[1766345510757,0.00568,88402.0,88391.0,0.19758336]
[1766345511130,0.00568,88402.0,88391.0,0.19794099]
[1766345511710,0.00568,88402.0,88392.0,0.01131324]
[1766345511910,0.00568,88402.0,88391.0,0.19794099]
[1766345514101,0.00568,88402.0,88395.0,0.18627]
[1766345514325,0.00513,88402.0,88396.0,0.01131272]
[1766345514520,0.00513,88402.0,88396.0,0.19758272]
[1766345515520,0.00513,88402.0,88381.0,0.18627]
[1766345515521,0.40691,88401.0,88381.0,0.18627]
[1766345515738,0.40691,88397.0,88389.0,0.005131]
[1766345515915,0.21374,88396.0,88389.0,0.005131]
[1766345516116,0.01131285,88395.0,88389.0,0.005131]
[1766345516340,0.22505272,88396.0,88389.0,0.005131]
[1766345516341,0.21374,88396.0,88389.0,0.005131]
[1766345516515,0.22505272,88396.0,88389.0,0.005131]
[1766345516940,0.01131285,88395.0,88389.0,0.005131]
[1766345517726,0.01131298,88394.0,88386.0,0.00568]
[1766345518252,0.01131298,88394.0,88385.0,5.7e-07]
[1766345518253,0.00055,88386.0,88385.0,5.7e-07]
[1766345518785,0.40691,88388.0,88376.0,0.06789111]
[1766345518921,0.41822375,88388.0,88376.0,0.18627]
[1766345519259,0.40691,88388.0,88379.0,0.00568]
[1766345521123,0.01131336,88391.0,88379.0,0.19195]
[1766345521347,0.01131349,88390.0,88379.0,0.19195]
[1766345521562,0.40691,88390.0,88379.0,0.00568]
[1766345521953,0.21374,88390.0,88379.0,0.2032649]
[1766345522158,0.40691,88390.0,88380.0,0.01131477]
[1766345522470,0.40691,88390.0,88379.0,0.0169949]
[1766345522471,0.40691,88389.0,88379.0,0.00568]
[1766345522676,0.21374,88388.0,88379.0,0.00568]
[1766345523222,0.40691,88388.0,88379.0,0.00568]
[1766345523419,0.41822375,88388.0,88379.0,0.00568]
[1766345523902,0.40691,88388.0,88379.0,0.00568]
[1766345525334,0.40691,88388.0,88379.0,0.0169949]
[1766345525679,0.40691,88388.0,88379.0,0.00568]
[1766345525876,0.40691,88388.0,88379.0,0.0169949]
[1766345527091,0.40691,88388.0,88380.0,0.01131477]
[1766345527286,0.40691,88388.0,88379.0,0.0169949]
[1766345528737,0.40691,88388.0,88379.0,0.00568]
[1766345530315,0.40351,88388.0,88379.0,0.00568]
[1766345530778,0.41482375,88388.0,88380.0,0.00568]
[1766345530931,0.40351,88388.0,88380.0,0.00568]
[1766345531347,0.01131388,88387.0,88380.0,0.00568]
[1766345531553,0.41057388,88387.0,88380.0,0.00568]
[1766345533230,0.39926,88387.0,88380.0,0.00568]
[1766345533430,0.41057388,88387.0,88380.0,0.00568]
[1766345535385,0.011314,88386.0,88380.0,0.00568]
[1766345535979,0.41057388,88387.0,88380.0,0.00568]
[1766345536194,0.39926,88387.0,88380.0,0.00568]
[1766345539593,0.18892,88387.0,88380.0,0.00568]
[1766345539797,0.21034,88386.0,88380.0,0.00568]
[1766345540707,0.410574,88386.0,88380.0,0.00215424]
[1766345540858,0.21034,88385.0,88380.0,0.00215424]
[1766345541682,0.39926,88385.0,88380.0,0.00215424]
[1766345542667,0.06788651,88383.0,88380.0,0.00215424]
[1766345542875,0.06788651,88383.0,88375.0,0.0004]
[1766345542876,0.06788865,88380.0,88375.0,0.0004]
[1766345543023,0.39926,88378.0,88376.0,0.00568]
[1766345543205,0.38085368,88378.0,88376.0,0.00568]
[1766345543606,0.19193368,88378.0,88376.0,0.00568]
[1766345543809,0.19138468,88378.0,88376.0,0.00568]
[1766345547648,0.19138468,88378.0,88373.0,0.00568]
[1766345548217,0.19138468,88378.0,88368.0,0.01131631]
[1766345548423,0.19138468,88378.0,88369.0,0.00568]
[1766345548618,0.19138468,88378.0,88369.0,0.01699618]
[1766345548818,0.19138468,88378.0,88369.0,0.00568]
[1766345550331,0.19138468,88378.0,88369.0,0.01699618]
[1766345550569,0.19138468,88378.0,88369.0,0.00568]
[1766345550955,0.19138468,88378.0,88369.0,0.01699618]
[1766345551136,0.19138468,88378.0,88369.0,0.00568]
[1766345552461,0.01131477,88380.0,88369.0,0.00568]
[1766345552462,0.40163,88375.0,88369.0,0.00568]
[1766345553078,0.21444,88375.0,88369.0,0.00568]
[1766345553403,0.19603277,88375.0,88369.0,0.00568]
[1766345553602,0.06788796,88381.0,88369.0,0.00568]
[1766345553603,0.01131554,88374.0,88369.0,0.005131]
[1766345553747,0.19850567,88373.0,88369.0,1e-06]
[1766345553945,0.18719,88373.0,88369.0,1e-06]
[1766345554778,0.18754757,88373.0,88369.0,1e-06]
[1766345554983,0.19886324,88373.0,88369.0,1e-06]
[1766345555183,0.18754757,88373.0,88369.0,1e-06]
[1766345555603,0.18754757,88373.0,88360.0,0.51841621]
[1766345555604,0.21267,88367.0,88360.0,0.04528]
[1766345555777,0.21267,88367.0,88358.0,0.0004]
[1766345555778,0.01131695,88363.0,88358.0,0.00608]
[1766345555986,0.01131618,88369.0,88363.0,0.000549]
[1766345556211,0.41600592,88371.0,88358.0,0.01739759]
[1766345556559,0.41600592,88371.0,88359.0,0.01131746]
[1766345556781,0.21267,88370.0,88359.0,0.01131746]
[1766345557253,0.40469,88368.0,88358.0,0.00608]
[1766345557424,0.40469,88365.0,88358.0,0.00608]
[1766345557832,0.21267,88365.0,88358.0,0.00608]
[1766345558433,0.00035757,88373.0,88362.0,0.01131708]
[1766345558636,0.00035757,88373.0,88363.0,0.01131695]
[1766345558637,0.19237757,88373.0,88363.0,0.01131695]
[1766345558817,0.19237757,88373.0,88362.0,0.01131708]
[1766345559401,0.1977,88372.0,88361.0,0.01131721]
[1766345559607,0.1977,88372.0,88362.0,0.01131708]
[1766345560408,0.1977,88372.0,88360.0,0.47313621]
[1766345560611,0.1977,88372.0,88362.0,0.01131708]
[1766345560812,0.41037,88372.0,88362.0,0.01131708]
[1766345561297,0.41037,88372.0,88363.0,0.01131695]
[1766345561499,0.41037,88372.0,88362.0,0.01131708]
[1766345563398,0.41037,88372.0,88363.0,0.01131695]
[1766345564506,0.41037,88372.0,88362.0,0.01131708]
[1766345564709,0.41037,88372.0,88363.0,0.01131695]
[1766345565012,0.40469,88371.0,88362.0,0.01131708]
[1766345565426,0.21267,88371.0,88363.0,0.01131695]
[1766345565641,0.00035757,88373.0,88371.0,0.00055]
[1766345565841,0.20333413,88385.0,88371.0,0.18939]
[1766345566064,0.01131439,88383.0,88371.0,0.18894104]
[1766345566282,0.01131439,88383.0,88371.0,0.20025696]
[1766345566514,0.01131452,88382.0,88371.0,0.18894104]
[1766345567074,0.19202,88385.0,88372.0,0.2001558]
[1766345567270,0.00568,88384.0,88382.0,0.00055]
[1766345567475,0.01131298,88394.0,88382.0,0.00055]
[1766345567476,0.0339883,88388.0,88382.0,0.00055]
[1766345567683,0.01131324,88392.0,88382.0,0.18884]
[1766345567896,0.00568,88391.0,88379.0,0.0113149]
[1766345568700,0.01699336,88391.0,88379.0,0.0113149]
[1766345568902,0.22398298,88394.0,88379.0,0.0113149]
[1766345568903,0.21267,88394.0,88382.0,0.01131452]
[1766345569134,0.22398298,88394.0,88382.0,0.01131452]
[1766345569283,0.00568,88393.0,88382.0,0.01131452]
[1766345569479,0.01131324,88392.0,88381.0,0.18884]
[1766345570223,0.01131349,88390.0,88377.0,0.00568]
[1766345570423,0.213769,88381.0,88377.0,0.01699516]
[1766345570636,0.213769,88381.0,88377.0,0.00568]
[1766345570785,0.19202,88386.0,88377.0,0.00568]
[1766345571122,0.011314,88386.0,88377.0,0.00568]
[1766345571319,0.22398452,88382.0,88377.0,0.00568]
[1766345571471,0.01131464,88381.0,88377.0,0.005131]
[1766345571720,0.22398452,88382.0,88377.0,0.00568]
[1766345572435,0.22398452,88382.0,88371.0,0.011518]
[1766345572640,0.22398452,88382.0,88372.0,0.00568]
[1766345573102,0.22398452,88382.0,88373.0,0.00568]
[1766345573780,0.01131464,88381.0,88371.0,0.011518]
[1766345574018,0.01131464,88381.0,88374.0,0.00568]
[1766345574360,0.22398452,88382.0,88374.0,0.00568]
[1766345574581,0.21267,88382.0,88374.0,0.00568]
[1766345574784,0.22398452,88382.0,88374.0,0.00568]
[1766345575052,0.21267,88382.0,88374.0,0.00568]
[1766345582308,0.20333439,88383.0,88371.0,0.02283392]
[1766345582309,0.00055,88374.0,88371.0,1.04e-06]
[1766345582504,0.19202,88375.0,88363.0,0.01131695]
[1766345582713,0.19202,88375.0,88364.0,0.00558]
[1766345582714,0.40469,88371.0,88364.0,0.00558]
[1766345582919,0.00035763,88371.0,88364.0,0.00568]
[1766345583412,0.40469,88368.0,88358.0,0.01171759]
[1766345583600,0.40469,88370.0,88359.0,0.00568]
[1766345583793,0.40469,88370.0,88360.0,0.46196868]
[1766345583992,0.01131605,88370.0,88367.0,0.00030828]
[1766345584215,0.40469,88370.0,88360.0,0.46196868]